fUSD/lending_fUSD_20240712
["ID","MTS","AMOUNT","RATE_DAILY","PERIOD"]
[331794634,1720765887986,-2671.99,0.00013863,2]
[331794635,1720765887995,-811.17,0.00013863,2]
[331794636,1720765888005,-500.0,0.00013863,2]
[331794637,1720765888015,-151.0,0.00013863,2]
[331794638,1720765888024,-1169.16,0.00013863,2]
[331794639,1720765888034,-264.64,0.00013863,2]
[331794640,1720765888043,-804.64,0.00013863,2]
[331794641,1720765888053,-516.06,0.00013863,2]
[331794642,1720765888062,-500.0,0.00013863,2]
[331794643,1720765888071,-500.0,0.00013863,2]
[331794644,1720765888081,-913.43,0.00013863,2]
[331794645,1720765888090,-1567.42,0.00013863,2]
[331794646,1720765888099,-1123.97,0.00013863,2]
[331794647,1720765888109,-1159.17,0.00013863,2]
[331794648,1720765888118,-7796.51,0.00013863,2]
[331794649,1720765888127,-682.47,0.00013863,2]
[331794650,1720765888137,-3427.86,0.00013863,2]
[331794651,1720765888147,-884.1,0.00013863,2]
[331794652,1720765888156,-761.42,0.00013863,2]
[331794653,1720765888166,-500.0,0.00013863,2]
[331794654,1720765888175,-500.0,0.00013863,2]
[331794655,1720765888185,-366.38573962,0.00013863,2]
[331794656,1720765888195,-500.0,0.00013863,2]
[331794657,1720765888205,-500.0,0.00013863,2]
[331794658,1720765888215,-407.25,0.00013863,2]
[331794659,1720765888224,-500.0,0.00013863,2]
[331794660,1720765888234,-196.29494122,0.00013863,2]
[331794661,1720765888243,-2349.61,0.00013863,2]
[331794662,1720765888253,-2824.19,0.00013863,2]
[331794663,1720765888262,-544.06,0.00013863,2]
[331794664,1720765888272,-500.0,0.00013863,2]
[331794665,1720765888282,-1413.14,0.00013863,2]
[331794666,1720765888291,-500.0,0.00013863,2]
[331794667,1720765888300,-500.0,0.00013863,2]
[331794668,1720765888310,-500.0,0.00013863,2]
[331794669,1720765888320,-151.0,0.00013863,2]
[331794670,1720765888329,-746.16,0.00013863,2]
[331794671,1720765888339,-500.0,0.00013863,2]
[331794672,1720765888348,-1040.64,0.00013863,2]
[331794673,1720765888358,-500.0,0.00013863,2]
[331794674,1720765888367,-568.05,0.00013863,2]
[331794675,1720765888436,-1225.06,0.00013863,2]
[331794676,1720765888447,-500.0,0.00013863,2]
[331794677,1720765888456,-500.0,0.00013863,2]
[331794678,1720765888465,-3411.217035,0.00013863,2]
[331794679,1720765888474,-945.48,0.00013863,2]
[331794680,1720765888483,-502.01,0.00013863,2]
[331794681,1720765888493,-1864.03,0.00013863,2]
[331794682,1720765888505,-500.0,0.00013863,2]
[331794683,1720765888514,-782.62,0.00013863,2]
[331794684,1720765888523,-3411.217035,0.00013863,2]
[331794685,1720765888532,-3139.48,0.00013863,2]
[331794686,1720765888542,-760.77,0.00013863,2]
[331794687,1720765888551,-967.92,0.00013863,2]
[331794688,1720765888561,-500.0,0.00013863,2]
[331794689,1720765888570,-817.59,0.00013863,2]
[331794690,1720765888581,-500.0,0.00013863,2]
[331794691,1720765888590,-672.02,0.00013863,2]
[331794692,1720765888600,-500.0,0.00013863,2]
[331794693,1720765888609,-503.52,0.00013863,2]
[331794694,1720765888618,-500.0,0.00013863,2]
[331794695,1720765888627,-500.0,0.00013863,2]
[331794696,1720765888637,-500.0,0.00013863,2]
[331794697,1720765888648,-927.94,0.00013863,2]
[331794698,1720765888660,-1369.87,0.00013863,2]
[331794699,1720765888671,-500.0,0.00013863,2]
[331794700,1720765888681,-500.0,0.00013863,2]
[331794701,1720765888690,-500.0,0.00013863,2]
[331794702,1720765888700,-500.0,0.00013863,2]
[331794703,1720765888709,-500.0,0.00013863,2]
[331794704,1720765888718,-510.11,0.00013863,2]
[331794705,1720765888728,-883.29,0.00013863,2]
[331794706,1720765888737,-500.0,0.00013863,2]
[331794707,1720765888747,-703.12,0.00013863,2]
[331794708,1720765888758,-500.0,0.00013863,2]
[331794709,1720765888767,-1249.82,0.00013863,2]
[331794710,1720765888777,-369.12,0.00013863,2]
[331794711,1720765888786,-698.85,0.00013863,2]
[331794712,1720765888795,-513.61,0.00013863,2]
[331794713,1720765888804,-500.0,0.00013863,2]
[331794714,1720765888813,-500.0,0.00013863,2]
[331794715,1720765888822,-500.0,0.00013863,2]
[331794716,1720765888832,-3390.01,0.00013863,2]
[331794717,1720765888842,-214.158926,0.00013863,2]
[331794718,1720765888851,-500.0,0.00013863,2]
[331794719,1720765888861,-522.91,0.00013863,2]
[331794720,1720765888871,-977.7,0.00013863,2]
[331794721,1720765888880,-500.0,0.00013863,2]
[331794722,1720765888890,-641.99,0.00013863,2]
[331794723,1720765888899,-214.158926,0.00013863,2]
[331794724,1720765888909,-500.0,0.00013863,2]
[331794725,1720765888918,-1182.584579,0.00013863,2]
[331794726,1720765888928,-853.13,0.00013863,2]
[331794727,1720765888938,-1182.584579,0.00013863,2]
[331794728,1720765888947,-760.44,0.00013863,2]
[331794729,1720765888957,-534.54,0.00013863,2]
[331794730,1720765888970,-1182.584579,0.00013863,2]
[331794731,1720765888980,-500.0,0.00013863,2]
[331794732,1720765888990,-1182.584579,0.00013863,2]
[331794733,1720765889001,-500.0,0.00013863,2]
[331794734,1720765889012,-789.27,0.00013863,2]
[331794735,1720765889024,-1308.59,0.00013863,2]
[331794736,1720765889035,-500.0,0.00013863,2]
[331794737,1720765889046,-237975.32478663,0.0001388,2]
[331794738,1720765889057,-210.966587,0.0001388,2]
[331794739,1720765889068,-151.0,0.0001388,2]
[331794740,1720765889079,-210.966587,0.0001388,2]
[331794741,1720765889088,-151.0,0.0001388,2]
[331794742,1720765889097,-3411.217035,0.0001388,2]
[331794743,1720765889106,-3411.217035,0.0001388,2]
[331794744,1720765889117,-214.158926,0.0001388,2]
[331794745,1720765889126,-214.158926,0.0001388,2]
[331794746,1720765889136,-1182.584579,0.0001388,2]
[331794747,1720765889145,-1182.58458,0.0001388,2]
[331794748,1720765889155,-367.216527,0.00013888,2]
[331794749,1720765889165,-457.782995,0.00013888,2]
[331794750,1720765889176,-1366.434122,0.00013888,2]
[331794751,1720765889186,-367.216526,0.00013888,2]
[331794752,1720765889195,-457.782994,0.00013888,2]
[331794753,1720765889204,-275.59319157,0.0001389,2]
[331794754,1720765889213,-290.08988897,0.00013891,2]
[331794755,1720765889223,-1499.10272715,0.00013891,2]
[331794756,1720765889232,-2000.0,0.00013891,2]
[331794757,1720765889241,-200.0,0.00013891,2]
[331794758,1720765889250,-201.0,0.00013899,2]
[331794759,1720765889259,-201.191,0.00013899,2]
[331794760,1720765889269,-302.872,0.00013899,2]
[331794761,1720765889279,-1255.567,0.00013899,2]
[331794762,1720765889288,-291.172,0.00013899,2]
[331794763,1720765889297,-1466.212,0.00013899,2]
[331794764,1720765889307,-1253.0,0.00013899,2]
[331794765,1720765889317,-450.0,0.000139,2]
[331794766,1720765889327,-356.0,0.000139,2]
[331794767,1720765889337,-1010.0,0.000139,2]
[331794768,1720765889346,-150.375,0.00013904,2]
[331794769,1720765889356,-167.05516023,0.00013907,2]
[331794770,1720765889365,-500.0,0.00013916,2]
[331794771,1720765889375,-500.0,0.00013916,2]
[331794772,1720765889384,-500.0,0.00013916,2]
[331794773,1720765889394,-500.0,0.00013916,2]
[331794774,1720765889403,-500.0,0.00013916,2]
[331794775,1720765889412,-272937.60787629,0.00013917,2]
[331794776,1720765889423,-164.270083,0.00013917,2]
[331794777,1720765889432,-500.0,0.00013917,2]
[331794778,1720765889442,-500.0,0.00013917,2]
[331794779,1720765889451,-500.0,0.00013917,2]
[331794780,1720765889460,-500.0,0.00013917,2]
[331794781,1720765889470,-500.0,0.00013917,2]
[331794782,1720765889480,-151.0,0.00013917,2]
[331794783,1720765889490,-500.0,0.00013917,2]
[331794784,1720765889506,-500.0,0.00013917,2]
[331794785,1720765889515,-500.0,0.00013917,2]
[331794786,1720765889524,-600.13,0.00013917,2]
[331794787,1720765889535,-500.0,0.00013917,2]
[331794788,1720765889544,-151.0,0.00013917,2]
[331794789,1720765889553,-533.46,0.00013917,2]
[331794790,1720765889562,-151.0,0.00013917,2]
[331794791,1720765889573,-171.533658,0.00013917,2]
[331794792,1720765889582,-151.0,0.00013917,2]
[331794793,1720765889591,-500.0,0.00013917,2]
[331794794,1720765889600,-500.0,0.00013917,2]
[331794795,1720765889610,-500.0,0.00013917,2]
[331794796,1720765889619,-500.0,0.00013917,2]
[331794797,1720765889628,-151.0,0.00013917,2]
[331794798,1720765889638,-151.0,0.00013917,2]
[331794799,1720765889647,-547.29,0.00013917,2]
[331794800,1720765889656,-527.94,0.00013917,2]
[331794801,1720765889666,-151.0,0.00013917,2]
[331794802,1720765889677,-500.0,0.00013917,2]
[331794803,1720765889686,-151.0,0.00013917,2]
[331794804,1720765889695,-151.0,0.00013917,2]
[331794805,1720765889704,-500.0,0.00013917,2]
[331794806,1720765889713,-500.0,0.00013917,2]
[331794807,1720765889722,-500.0,0.00013917,2]
[331794808,1720765889732,-829.62,0.00013917,2]
[331794809,1720765889741,-678.42,0.00013917,2]
[331794810,1720765889750,-151.0,0.00013917,2]
[331794811,1720765889759,-500.0,0.00013917,2]
[331794812,1720765889768,-500.0,0.00013917,2]
[331794813,1720765889777,-500.0,0.00013917,2]
[331794814,1720765889787,-1078.13,0.00013917,2]
[331794815,1720765889796,-500.0,0.00013917,2]
[331794816,1720765889805,-500.0,0.00013917,2]
[331794817,1720765889815,-599.97,0.00013917,2]
[331794818,1720765889824,-500.0,0.00013917,2]
[331794819,1720765889833,-443.31618165,0.00013917,2]
[331794820,1720765889842,-572.91,0.00013917,2]
[331794821,1720765889852,-500.0,0.00013917,2]
[331794822,1720765889861,-500.0,0.00013917,2]
[331794823,1720765889871,-500.0,0.00013917,2]
[331794824,1720765889881,-151.0,0.00013917,2]
[331794825,1720765889891,-500.0,0.00013917,2]
[331794826,1720765889899,-500.0,0.00013917,2]
[331794827,1720765889909,-541.87,0.00013917,2]
[331794828,1720765889918,-561.01,0.00013917,2]
[331794829,1720765889930,-151.0,0.00013917,2]
[331794830,1720765889940,-500.0,0.00013917,2]
[331794831,1720765889949,-526.37,0.00013917,2]
[331794832,1720765889961,-500.0,0.00013917,2]
[331794833,1720765889970,-500.0,0.00013917,2]
[331794834,1720765889980,-500.0,0.00013917,2]
[331794835,1720765889989,-500.0,0.00013917,2]
[331794836,1720765889998,-500.0,0.00013917,2]
[331794837,1720765890008,-500.0,0.00013917,2]
[331794838,1720765890018,-658.35,0.00013917,2]
[331794839,1720765890027,-500.0,0.00013917,2]
[331794840,1720765890037,-164.833302,0.00013917,2]
[331794841,1720765890046,-164.833302,0.00013917,2]
[331794842,1720765890055,-597.81,0.00013917,2]
[331794843,1720765890064,-665.34,0.00013917,2]
[331794844,1720765890074,-879.54,0.00013917,2]
[331794845,1720765890084,-151.0,0.00013917,2]
[331794846,1720765890093,-500.0,0.00013917,2]
[331794847,1720765890102,-500.0,0.00013917,2]
[331794848,1720765890111,-1042.83,0.00013917,2]
[331794849,1720765890121,-500.0,0.00013917,2]
[331794850,1720765890131,-500.0,0.00013917,2]
[331794851,1720765890140,-500.0,0.00013917,2]
[331794852,1720765890149,-500.0,0.00013917,2]
[331794853,1720765890159,-151.0,0.00013917,2]
[331794854,1720765890168,-151.0,0.00013917,2]
[331794855,1720765890178,-151.0,0.00013917,2]
[331794856,1720765890187,-801.96,0.00013917,2]
[331794857,1720765890196,-676.83,0.00013917,2]
[331794858,1720765890206,-576.46,0.00013917,2]
[331794859,1720765890216,-679.71,0.00013917,2]
[331794860,1720765890228,-500.0,0.00013917,2]
[331794861,1720765890238,-699.82,0.00013917,2]
[331794862,1720765890248,-500.0,0.00013917,2]
[331794863,1720765890257,-500.0,0.00013917,2]
[331794864,1720765890267,-500.0,0.00013917,2]
[331794865,1720765890278,-500.0,0.00013917,2]
[331794866,1720765890287,-902.64,0.00013917,2]
[331794867,1720765890296,-538.94,0.00013917,2]
[331794868,1720765890305,-500.0,0.00013917,2]
[331794869,1720765890314,-500.0,0.00013917,2]
[331794870,1720765890323,-969.66,0.00013917,2]
[331794871,1720765890333,-1386.9,0.00013917,2]
[331794872,1720765890343,-500.0,0.00013917,2]
[331794873,1720765890355,-500.0,0.00013917,2]
[331794874,1720765890365,-375.39866499,0.00013917,2]
[331794875,1720765890375,-500.0,0.00013917,2]
[331794876,1720765890385,-500.0,0.00013917,2]
[331794877,1720765890394,-500.0,0.00013917,2]
[331794878,1720765890403,-500.0,0.00013917,2]
[331794879,1720765890414,-500.0,0.00013917,2]
[331794880,1720765890425,-500.0,0.00013917,2]
[331794881,1720765890435,-832.86,0.00013917,2]
[331794882,1720765890446,-151.0,0.00013917,2]
[331794883,1720765890455,-153.838184,0.00013917,2]
[331794884,1720765890467,-1142.56,0.00013917,2]
[331794885,1720765890477,-584.03,0.00013917,2]
[331794886,1720765890486,-151.0,0.00013917,2]
[331794887,1720765890497,-151.0,0.00013917,2]
[331794888,1720765890508,-184.877998,0.00013917,2]
[331794889,1720765890517,-184.877998,0.00013917,2]
[331794890,1720765890528,-678.02,0.00013917,2]
[331794891,1720765890539,-980.86,0.00013917,2]
[331794892,1720765890550,-965.58,0.00013917,2]
[331794893,1720765890559,-184.877998,0.00013917,2]
[331794894,1720765890569,-184.877998,0.00013917,2]
[331794895,1720765890580,-500.0,0.00013917,2]
[331794896,1720765890590,-500.0,0.00013917,2]
[331794897,1720765890600,-500.0,0.00013917,2]
[331794898,1720765890609,-500.0,0.00013917,2]
[331794899,1720765890620,-500.0,0.00013917,2]
[331794900,1720765890630,-625.22,0.00013917,2]
[331794901,1720765890642,-500.0,0.00013917,2]
[331794902,1720765890653,-151.900626,0.00013917,2]
[331794903,1720765890664,-500.0,0.00013917,2]
[331794904,1720765890674,-643.77246585,0.00013917,2]
[331794905,1720765890684,-1043.71,0.00013917,2]
[331794906,1720765890695,-500.0,0.00013917,2]
[331794907,1720765890708,-500.0,0.00013917,2]
[331794908,1720765890719,-1095.96,0.00013917,2]
[331794909,1720765890731,-663.07,0.00013917,2]
[331794910,1720765890743,-500.0,0.00013917,2]
[331794911,1720765890755,-500.0,0.00013917,2]
[331794912,1720765890766,-1311.76,0.00013917,2]
[331794913,1720765890776,-489.62,0.00013917,2]
[331794914,1720765890787,-500.0,0.00013917,2]
[331794915,1720765890799,-483.39834769,0.00013917,2]
[331794916,1720765890810,-1064.74,0.00013917,2]
[331794917,1720765890823,-500.0,0.00013917,2]
[331794918,1720765890835,-500.0,0.00013917,2]
[331794919,1720765890847,-500.0,0.00013917,2]
[331794920,1720765890859,-1453.03,0.00013917,2]
[331794921,1720765890871,-500.0,0.00013917,2]
[331794922,1720765890880,-506.91,0.00013917,2]
[331794923,1720765890890,-625.46,0.00013917,2]
[331794924,1720765890902,-651.67,0.00013917,2]
[331794925,1720765890912,-500.0,0.00013917,2]
[331794926,1720765890923,-1301.15,0.00013917,2]
[331794927,1720765890932,-500.0,0.00013917,2]
[331794928,1720765890942,-500.0,0.00013917,2]
[331794929,1720765890951,-500.0,0.00013917,2]
[331794930,1720765890961,-618.62,0.00013917,2]
[331794931,1720765890970,-500.0,0.00013917,2]
[331794932,1720765890980,-1182.83,0.00013917,2]
[331794933,1720765890989,-871.11,0.00013917,2]
[331794934,1720765890999,-500.0,0.00013917,2]
[331794935,1720765891008,-500.0,0.00013917,2]
[331794936,1720765891018,-560.48,0.00013917,2]
[331794937,1720765891027,-886.56,0.00013917,2]
[331794938,1720765891037,-500.0,0.00013917,2]
[331794939,1720765891046,-151.0,0.00013917,2]
[331794940,1720765891056,-1085.4,0.00013917,2]
[331794941,1720765891065,-184.427444,0.00013917,2]
[331794942,1720765891075,-500.0,0.00013917,2]
[331794943,1720765891085,-184.427444,0.00013917,2]
[331794944,1720765891095,-896.6,0.00013917,2]
[331794945,1720765891104,-830.96,0.00013917,2]
[331794946,1720765891114,-500.0,0.00013917,2]
[331794947,1720765891123,-674.06,0.00013917,2]
[331794948,1720765891133,-184.427444,0.00013917,2]
[331794949,1720765891142,-1895.01,0.00013917,2]
[331794950,1720765891152,-184.427444,0.00013917,2]
[331794951,1720765891161,-191.349304,0.00013917,2]
[331794952,1720765891170,-1172.9,0.00013917,2]
[331794953,1720765891181,-1660.92,0.00013917,2]
[331794954,1720765891190,-500.0,0.00013917,2]
[331794955,1720765891200,-644.5,0.00013917,2]
[331794956,1720765891209,-315.615147,0.00013917,2]
[331794957,1720765891219,-1467.31,0.00013917,2]
[331794958,1720765891228,-500.0,0.00013917,2]
[331794959,1720765891237,-500.0,0.00013917,2]
[331794960,1720765891246,-315.615147,0.00013917,2]
[331794961,1720765891256,-981.49,0.00013917,2]
[331794962,1720765891265,-500.0,0.00013917,2]
[331794963,1720765891274,-500.0,0.00013917,2]
[331794964,1720765891285,-1112.45,0.00013917,2]
[331794965,1720765891294,-721.53,0.00013917,2]
[331794966,1720765891304,-500.0,0.00013917,2]
[331794967,1720765891314,-500.0,0.00013917,2]
[331794968,1720765891323,-773.09,0.00013917,2]
[331794969,1720765891338,-500.0,0.00013917,2]
[331794970,1720765891348,-500.0,0.00013917,2]
[331794971,1720765891359,-750.22,0.00013917,2]
[331794972,1720765891369,-500.0,0.00013917,2]
[331794973,1720765891379,-500.0,0.00013917,2]
[331794974,1720765891389,-617.12,0.00013917,2]
[331794975,1720765891399,-1485.55,0.00013917,2]
[331794976,1720765891409,-500.0,0.00013917,2]
[331794977,1720765891418,-500.0,0.00013917,2]
[331794978,1720765891430,-645.73,0.00013917,2]
[331794979,1720765891440,-609.33,0.00013917,2]
[331794980,1720765891450,-500.0,0.00013917,2]
[331794981,1720765891460,-1043.11,0.00013917,2]
[331794982,1720765891471,-500.0,0.00013917,2]
[331794983,1720765891481,-151.0,0.00013917,2]
[331794984,1720765891491,-151.0,0.00013917,2]
[331794985,1720765891504,-654.803429,0.00013917,2]
[331794986,1720765891514,-654.803429,0.00013917,2]
[331794987,1720765891524,-577.94,0.00013917,2]
[331794988,1720765891534,-1001.09,0.00013917,2]
[331794989,1720765891546,-572.94,0.00013917,2]
[331794990,1720765891556,-654.803429,0.00013917,2]
[331794991,1720765891566,-537.28,0.00013917,2]
[331794992,1720765891577,-654.803429,0.00013917,2]
[331794993,1720765891587,-826.26,0.00013917,2]
[331794994,1720765891598,-500.0,0.00013917,2]
[331794995,1720765891608,-863.68,0.00013917,2]
[331794996,1720765891618,-500.0,0.00013917,2]
[331794997,1720765891629,-500.0,0.00013917,2]
[331794998,1720765891639,-978.71,0.00013917,2]
[331794999,1720765891650,-500.0,0.00013917,2]
[331795000,1720765891660,-927.14,0.00013917,2]
[331795001,1720765891671,-500.0,0.00013917,2]
[331795002,1720765891682,-1033.49,0.00013917,2]
[331795003,1720765891693,-500.0,0.00013917,2]
[331795004,1720765891702,-500.0,0.00013917,2]
[331795005,1720765891713,-584.99,0.00013917,2]
[331795006,1720765891723,-151.0,0.00013917,2]
[331795007,1720765891734,-151.0,0.00013917,2]
[331795008,1720765891743,-151.0,0.00013917,2]
[331795009,1720765891754,-151.0,0.00013917,2]
[331795010,1720765891764,-1551.06,0.00013917,2]
[331795011,1720765891775,-924.22,0.00013917,2]
[331795012,1720765891786,-151.0,0.00013917,2]
[331795013,1720765891796,-151.0,0.00013917,2]
[331795014,1720765891807,-500.0,0.00013917,2]
[331795015,1720765891818,-936.64,0.00013917,2]
[331795016,1720765891829,-500.0,0.00013917,2]
[331795017,1720765891839,-500.0,0.00013917,2]
[331795018,1720765891849,-503.69,0.00013917,2]
[331795019,1720765891860,-151.0,0.00013917,2]
[331795020,1720765891870,-500.0,0.00013917,2]
[331795021,1720765891880,-500.0,0.00013917,2]
[331795022,1720765891890,-500.0,0.00013917,2]
[331795023,1720765891901,-583.16,0.00013917,2]
[331795024,1720765891911,-1266.54,0.00013917,2]
[331795025,1720765891921,-500.0,0.00013917,2]
[331795026,1720765891933,-1145.72,0.00013917,2]
[331795027,1720765891944,-151.0,0.00013917,2]
[331795028,1720765891956,-151.0,0.00013917,2]
[331795029,1720765891966,-500.0,0.00013917,2]
[331795030,1720765891976,-160.74373358,0.00013917,2]
[331795031,1720765891986,-500.0,0.00013917,2]
[331795032,1720765891997,-628.89,0.00013917,2]
[331795033,1720765892007,-908.15,0.00013917,2]
[331795034,1720765892017,-1072.75,0.00013917,2]
[331795035,1720765892028,-617.45,0.00013917,2]
[331795036,1720765892038,-882.64,0.00013917,2]
[331795037,1720765892048,-500.0,0.00013917,2]
[331795038,1720765892059,-151.0,0.00013917,2]
[331795039,1720765892069,-500.0,0.00013917,2]
[331795040,1720765892080,-500.0,0.00013917,2]
[331795041,1720765892090,-597.8,0.00013917,2]
[331795042,1720765892101,-1413.12,0.00013917,2]
[331795043,1720765892111,-500.0,0.00013917,2]
[331795044,1720765892121,-684.65,0.00013917,2]
[331795045,1720765892131,-1269.4,0.00013917,2]
[331795046,1720765892142,-1009.57,0.00013917,2]
[331795047,1720765892152,-820.34,0.00013917,2]
[331795048,1720765892162,-570.33,0.00013917,2]
[331795049,1720765892172,-751.75,0.00013917,2]
[331795050,1720765892183,-500.0,0.00013917,2]
[331795051,1720765892193,-500.0,0.00013917,2]
[331795052,1720765892203,-1287.67,0.00013917,2]
[331795053,1720765892213,-922.77,0.00013917,2]
[331795054,1720765892224,-500.0,0.00013917,2]
[331795055,1720765892235,-1345.39,0.00013917,2]
[331795056,1720765892245,-649.45,0.00013917,2]
[331795057,1720765892255,-500.0,0.00013917,2]
[331795058,1720765892265,-500.0,0.00013917,2]
[331795059,1720765892275,-536.18,0.00013917,2]
[331795060,1720765892286,-500.0,0.00013917,2]
[331795061,1720765892296,-895.96,0.00013917,2]
[331795062,1720765892306,-1632.41,0.00013917,2]
[331795063,1720765892316,-500.0,0.00013917,2]
[331795064,1720765892326,-566.55,0.00013917,2]
[331795065,1720765892337,-729.38,0.00013917,2]
[331795066,1720765892347,-500.0,0.00013917,2]
[331795067,1720765892357,-500.0,0.00013917,2]
[331795068,1720765892367,-500.0,0.00013917,2]
[331795069,1720765892378,-1661.47,0.00013917,2]
[331795070,1720765892389,-500.0,0.00013917,2]
[331795071,1720765892400,-208.565744,0.00013917,2]
[331795072,1720765892411,-1622.68,0.00013917,2]
[331795073,1720765892420,-1461.03,0.00013917,2]
[331795074,1720765892432,-208.565744,0.00013917,2]
[331795075,1720765892442,-500.0,0.00013917,2]
[331795076,1720765892452,-932.1,0.00013917,2]
[331795077,1720765892462,-600.18,0.00013917,2]
[331795078,1720765892473,-500.0,0.00013917,2]
[331795079,1720765892483,-652.76,0.00013917,2]
[331795080,1720765892493,-590.79,0.00013917,2]
[331795081,1720765892507,-649.76,0.00013917,2]
[331795082,1720765892518,-562.94,0.00013917,2]
[331795083,1720765892529,-500.0,0.00013917,2]
[331795084,1720765892539,-500.0,0.00013917,2]
[331795085,1720765892551,-500.0,0.00013917,2]
[331795086,1720765892562,-511.55,0.00013917,2]
[331795087,1720765892573,-500.0,0.00013917,2]
[331795088,1720765892583,-682.84,0.00013917,2]
[331795089,1720765892593,-500.0,0.00013917,2]
[331795090,1720765892604,-500.0,0.00013917,2]
[331795091,1720765892614,-557.92,0.00013917,2]
[331795092,1720765892625,-913.11,0.00013917,2]
[331795093,1720765892635,-500.0,0.00013917,2]
[331795094,1720765892646,-500.0,0.00013917,2]
[331795095,1720765892656,-665.1,0.00013917,2]
[331795096,1720765892667,-500.0,0.00013917,2]
[331795097,1720765892677,-647.57,0.00013917,2]
[331795098,1720765892688,-500.0,0.00013917,2]
[331795099,1720765892699,-151.0,0.00013917,2]
[331795100,1720765892709,-655.14,0.00013917,2]
[331795101,1720765892720,-151.0,0.00013917,2]
[331795102,1720765892731,-1070.59,0.00013917,2]
[331795103,1720765892742,-151.0,0.00013917,2]
[331795104,1720765892753,-500.0,0.00013917,2]
[331795105,1720765892764,-500.0,0.00013917,2]
[331795106,1720765892776,-500.0,0.00013917,2]
[331795107,1720765892786,-500.0,0.00013917,2]
[331795108,1720765892797,-500.0,0.00013917,2]
[331795109,1720765892808,-549.77,0.00013917,2]
[331795110,1720765892818,-500.0,0.00013917,2]
[331795111,1720765892829,-500.0,0.00013917,2]
[331795112,1720765892839,-955.34,0.00013917,2]
[331795113,1720765892859,-500.0,0.00013917,2]
[331795114,1720765892872,-500.0,0.00013917,2]
[331795115,1720765892884,-537.9,0.00013917,2]
[331795116,1720765892897,-500.0,0.00013917,2]
[331795117,1720765893189,-500.0,0.00013917,2]
[331795118,1720765893223,-572.55,0.00013917,2]
[331795119,1720765893234,-1087.88,0.00013917,2]
[331795120,1720765893244,-924.38,0.00013917,2]
[331795121,1720765893254,-500.0,0.00013917,2]
[331795122,1720765893265,-151.0,0.00013917,2]
[331795123,1720765893275,-500.0,0.00013917,2]
[331795124,1720765893285,-500.0,0.00013917,2]
[331795125,1720765893295,-895.76,0.00013917,2]
[331795126,1720765893305,-500.0,0.00013917,2]
[331795127,1720765893315,-877.72,0.00013917,2]
[331795128,1720765893325,-811.35,0.00013917,2]
[331795129,1720765893336,-701.46,0.00013917,2]
[331795130,1720765893346,-500.0,0.00013917,2]
[331795131,1720765893356,-500.0,0.00013917,2]
[331795132,1720765893366,-951.0,0.00013917,2]
[331795133,1720765893376,-943.64,0.00013917,2]